fUSD/lending_fUSD_20250906
["ID","MTS","AMOUNT","RATE_DAILY","PERIOD"]
[383952063,1757196650709,-160.61027342,0.00035166,2]
[383952064,1757196650720,-1000.0,0.00035169,2]
[383952065,1757196650732,-500.0,0.0003517,2]
[383952066,1757196650743,-1000.0,0.0003517,2]
[383952067,1757196650754,-1425.0,0.00035174,2]
[383952068,1757196650764,-150.0,0.00035177,20]
[383952069,1757196650776,-150.0,0.00035183,2]
[383952070,1757196650787,-1000.0,0.00035185,2]
[383952071,1757196650798,-301.33,0.00035188,2]
[383952072,1757196650810,-150.0,0.00035192,2]
[383952073,1757196650820,-1423.94821042,0.00035192,2]
[383952074,1757196650831,-114108.37763395,0.00035198,2]
[383952075,1757196651958,-5242.76,0.00035198,2]
[383952076,1757196651971,-1391.33796321,0.00035198,2]
[383952077,1757196652628,-20077.83107831,0.00035198,2]
[383952078,1757196654886,-7467.5,0.0001999,2]
[383952079,1757196654896,-7467.5,0.0001999,2]
[383952080,1757196654905,-212.67823062,0.00031557,2]
[383952081,1757196655155,-3794.27715339,0.00033987,2]
[383952082,1757196655186,-541.44,0.0003432,2]
[383952083,1757196655196,-168.6,0.0003432,2]
[383952084,1757196655206,-371.87,0.0003432,2]
[383952085,1757196655215,-3794.27715337,0.00034457,2]
[383952086,1757196655225,-29630.41418873,0.00035198,2]
[383952087,1757196655234,-3411.046875,0.00035198,2]
[383952088,1757196655244,-156.1575659,0.00035198,2]
[383952089,1757196655254,-151.0,0.00035201,14]
[383952090,1757196655263,-20457.7338692,0.00035204,2]
[383952091,1757196655273,-928.7845626,0.00035204,2]
[383952092,1757196655284,-3250.2954215,0.00035204,2]
[383952093,1757196655294,-1000.0,0.00035204,2]
[383952094,1757196655303,-150.0,0.00035204,2]
[383952095,1757196655313,-466.22821208,0.00035264,2]
[383952096,1757196655323,-150.0,0.00035265,2]
[383952097,1757196655333,-816.97619803,0.00035268,2]
[383952098,1757196655342,-1041.24417395,0.0003527,2]
[383952099,1757196655352,-530.85994619,0.00035273,2]
[383952100,1757196901637,162.33,0.000164,2]
[383952103,1757197113664,-162.33,0.00018743,2]
[383952104,1757197113704,-162.33,0.00021086,2]
[383952105,1757197113743,-162.33,0.00023428,2]
[383952106,1757197113779,-151.0,0.000248,7]
[383952107,1757197113816,-156.832989,0.000249,7]
[383952108,1757197113871,-387.67217514,0.000249,2]
[383952109,1757197113923,-5649.45168752,0.00025,3]
[383952110,1757197273529,374.74976936,0.000249,2]
[383952111,1757197458680,362.25811042,0.000249,2]
[383952114,1757197508056,42431.04526856,0.0002,2]
[383952115,1757197525138,1010.97204401,0.000108,2]
[383952116,1757197535636,4278.77553925,9e-05,2]
[383952117,1757197655082,62498.4841077,0.00018,2]
[383952118,1757197655110,905.90765423,0.00018,2]
[383952121,1757197808466,250.0,0.00015,2]
[383952122,1757197809587,300.0,0.00017,2]
[383952133,1757197831433,-300.0,0.00019999,2]
[383952134,1757197831444,-42.0799995,0.0002,2]
[383952148,1757197831888,-2109.8479571,0.0002,2]
[383952457,1757197837352,-1690.36740754,0.0002,2]
[383952458,1757197837575,-636.07503734,0.0002,2]
[383952459,1757197837588,-5690.0,0.0002,2]
[383952460,1757197837600,-4334.69999996,0.0002,2]
[383952566,1757197840207,-31116.75831385,0.0002,2]
[383952567,1757197840217,-5000.0,0.00024,5]
[383952568,1757197840226,-350.18284015,0.000249,2]
[383952569,1757197840242,-162.33,0.00025771,2]
[383952570,1757197840252,-350.18283994,0.00027827,8]
[383952571,1757197840262,-162.33,0.00028114,2]
[383952572,1757197840271,-160.0,0.00029669,2]
[383952573,1757197840283,-212.67823062,0.00029669,2]
[383952574,1757197840292,-160.0,0.00029669,2]
[383952575,1757197840302,-160.0,0.00029674,2]
[383952576,1757197840316,-165.93,0.0003012,2]
[383952577,1757197840325,-165.93,0.0003012,2]
[383952578,1757197840335,-165.93,0.0003012,2]
[383952579,1757197840344,-165.93,0.0003012,2]
[383952580,1757197840354,-68.04517555,0.0003012,2]
[383952581,1757197840374,-97.88482445,0.0003012,2]
[383952582,1757197840384,-151.0,0.00030127,7]
[383952583,1757197840393,-234.81387069,0.00030129,2]
[383952584,1757197840402,-522.74458115,0.00030129,2]
[383952585,1757197840411,-216.93391646,0.00030129,2]
[383952586,1757197840421,-500.0,0.00030129,2]
[383952587,1757197840430,-272.4780846,0.00030129,2]
[383952588,1757197840439,-369091.43424648,0.0003013,2]
[383952589,1757197840534,-24825.71451056,0.0003013,2]
[383952590,1757197840546,-3108.90228778,0.0003013,2]
[383952591,1757197840557,-5781.04095215,0.0003013,2]
[383952592,1757197840580,-20705.27965148,0.0003013,2]
[383952593,1757197840592,-302.69897266,0.0003013,2]
[383952594,1757197840603,-176.60237769,0.00030357,2]
[383952595,1757197840613,-162.33,0.00030457,2]
[383952596,1757197840622,-350.18283994,0.00030754,14]
[383952597,1757197840632,-250.0,0.00031025,2]
[383952598,1757197840641,-176.60237767,0.00031921,2]
[383952599,1757197840651,-666.0,0.00032015,3]
[383952600,1757197840660,-999.99,0.00032232,2]
[383952601,1757197840670,-193.9,0.00032232,2]
[383952602,1757197840679,-165.66,0.00032237,2]
[383952603,1757197840689,-267.46074303,0.0003241,2]
[383952604,1757197840699,-933.25744248,0.0003241,2]
[383952605,1757197840709,-151.0,0.0003241,2]
[383952606,1757197840719,-201.93286099,0.0003241,2]
[383952607,1757197840729,-150.0,0.0003255,2]
[383952608,1757197840738,-1258.0,0.00032688,2]
[383952609,1757197840748,-4164.0,0.00032688,2]
[383952610,1757197840758,-705.05402987,0.00032698,2]
[383952611,1757197840768,-160.0,0.00032796,7]
[383952612,1757197840777,-162.33,0.000328,2]
[383952613,1757197840788,-470.72,0.00032841,30]
[383952614,1757197840797,-826.91522022,0.00032847,2]
[383952615,1757197840807,-500.0,0.00032877,7]
[383952616,1757197840816,-500.0,0.00032877,7]
[383952617,1757197840826,-160.44151723,0.00032963,2]
[383952618,1757197840835,-948.77641057,0.00032995,2]
[383952619,1757197840844,-1541.5629149,0.00033,3]
[383952620,1757197840857,-14975.53886107,0.00033,3]
[383952621,1757197840867,-514.85095374,0.00033,3]
[383952622,1757197840877,-1357.28224925,0.00033053,3]
[383952623,1757197840888,-500.0,0.00033087,7]
[383952624,1757197840898,-1070.63760092,0.00033144,2]
[383952625,1757197840907,-1192.49879127,0.00033292,2]
[383952626,1757197840917,-500.0,0.00033298,7]
[383952627,1757197840928,-151.0,0.00033325,2]
[383952628,1757197840937,-695.39793187,0.00033325,2]
[383952629,1757197840947,-151.0,0.00033325,2]
[383952630,1757197840957,-151.0,0.00033325,2]
[383952631,1757197840966,-151.0,0.00033325,2]
[383952632,1757197840975,-151.0,0.00033325,2]
[383952633,1757197840985,-151.0,0.00033325,2]
[383952634,1757197841000,-322.6107,0.00033325,2]
[383952635,1757197841013,-151.0,0.00033325,2]
[383952636,1757197841023,-151.0,0.00033325,2]
[383952637,1757197841033,-151.0,0.00033325,2]
[383952638,1757197841042,-160.0,0.00033325,2]
[383952639,1757197841051,-683.375,0.00033345,35]
[383952640,1757197841062,-3011.38049103,0.00033345,2]
[383952641,1757197841072,-403.27,0.00033367,2]
[383952642,1757197841082,-1314.35998162,0.00033441,2]
[383952643,1757197841091,-176.60237767,0.00033485,2]
[383952644,1757197841101,-500.0,0.00033509,7]
[383952645,1757197841111,-1436.22117197,0.00033589,2]
[383952646,1757197841120,-350.18283994,0.00033682,21]
[383952647,1757197841130,-500.0,0.0003372,7]
[383952648,1757197841140,-1558.08236232,0.00033737,2]
[383952649,1757197841149,-277.35679052,0.00033779,2]
[383952650,1757197841159,-151.0,0.00033873,2]
[383952651,1757197841169,-151.0,0.00033873,2]
[383952652,1757197841178,-1679.94355266,0.00033886,2]
[383952653,1757197841187,-1006.0,0.000339,7]
[383952654,1757197841197,-500.0,0.0003393,7]
[383952655,1757197841207,-1801.80474301,0.00034034,2]
[383952656,1757197841216,-166.67,0.00034037,2]
[383952657,1757197841226,-341.01,0.000341,30]
[383952658,1757197841240,-1083.0,0.000341,2]
[383952659,1757197841250,-1018.5305949,0.00034111,2]
[383952660,1757197841259,-161.8226803,0.00034111,2]
[383952661,1757197841269,-500.0,0.00034141,7]
[383952662,1757197841281,-1923.66593336,0.00034183,2]
[383952663,1757197841291,-245.35459849,0.000342,7]
[383952664,1757197841300,-546.0,0.000342,7]
[383952665,1757197841311,-152.0,0.000342,7]
[383952666,1757197841320,-546.0,0.000342,7]
[383952667,1757197841330,-152.0,0.000342,7]
[383952668,1757197841339,-152.0,0.000342,7]
[383952669,1757197841348,-152.0,0.000342,7]
[383952670,1757197841358,-546.0,0.000342,7]
[383952671,1757197841367,-1224.0,0.000342,7]
[383952672,1757197841377,-546.0,0.000342,7]
[383952673,1757197841386,-1224.0,0.000342,7]
[383952674,1757197841395,-155.0,0.000342,7]
[383952675,1757197841405,-546.0,0.000342,7]
[383952676,1757197841414,-1224.0,0.000342,7]
[383952677,1757197841424,-155.0,0.000342,7]
[383952678,1757197841434,-546.0,0.000342,7]
[383952679,1757197841444,-1224.0,0.000342,7]
[383952680,1757197841453,-546.0,0.000342,7]
[383952681,1757197841463,-1224.0,0.000342,7]
[383952682,1757197841472,-546.0,0.000342,7]
[383952683,1757197841482,-153.0,0.000342,7]
[383952684,1757197841492,-1224.0,0.000342,7]
[383952685,1757197841502,-546.0,0.000342,7]
[383952686,1757197841512,-153.0,0.000342,7]
[383952687,1757197841522,-290.43323799,0.000342,7]
[383952688,1757197841531,-546.0,0.000342,7]
[383952689,1757197841541,-153.0,0.000342,7]
[383952690,1757197841551,-546.0,0.000342,7]
[383952691,1757197841560,-153.0,0.000342,7]
[383952692,1757197841570,-546.0,0.000342,7]
[383952693,1757197841579,-546.0,0.000342,7]
[383952694,1757197841589,-546.0,0.000342,7]
[383952695,1757197841598,-158.09129496,0.000342,7]
[383952696,1757197841608,-546.0,0.000342,7]
[383952697,1757197841618,-546.0,0.000342,7]
[383952698,1757197841628,-546.0,0.000342,7]
[383952699,1757197841638,-546.0,0.000342,7]
[383952700,1757197841648,-546.0,0.000342,7]
[383952701,1757197841658,-546.0,0.000342,7]
[383952702,1757197841668,-546.0,0.000342,7]
[383952703,1757197841677,-546.0,0.000342,7]
[383952704,1757197841687,-546.0,0.000342,7]
[383952705,1757197841697,-546.0,0.000342,7]
[383952706,1757197841707,-546.0,0.000342,7]
[383952707,1757197841716,-546.0,0.000342,7]
[383952708,1757197841725,-188.43849999,0.000342,7]
[383952709,1757197841738,-357.56150001,0.000342,7]
[383952710,1757197841748,-546.0,0.000342,7]
[383952711,1757197841757,-460.12684928,0.000342,7]
[383952712,1757197841768,-85.87315072,0.000342,7]
[383952713,1757197841777,-546.0,0.000342,7]
[383952714,1757197841787,-546.0,0.000342,7]
[383952715,1757197841796,-546.0,0.000342,7]
[383952716,1757197841806,-546.0,0.000342,7]
[383952717,1757197841815,-546.0,0.000342,7]
[383952718,1757197841824,-546.0,0.000342,7]
[383952719,1757197841834,-546.0,0.000342,7]
[383952720,1757197841843,-546.0,0.000342,7]
[383952721,1757197841856,-546.0,0.000342,7]
[383952723,1757197842151,-546.0,0.000342,7]
[383952725,1757197842170,-546.0,0.000342,7]
[383952726,1757197842182,-546.0,0.000342,7]
[383952727,1757197842193,-200.80141821,0.000342,7]
[383952728,1757197842203,-546.0,0.000342,7]
[383952730,1757197842213,-546.0,0.000342,7]
[383952731,1757197842223,-546.0,0.000342,7]
[383952732,1757197842232,-546.0,0.000342,7]
[383952733,1757197842248,-546.0,0.000342,7]
[383952734,1757197842260,-108.81734044,0.000342,7]
[383952735,1757197842272,-437.18265956,0.000342,7]
[383952737,1757197842285,-546.0,0.000342,7]
[383952738,1757197842295,-546.0,0.000342,7]
[383952739,1757197842305,-546.0,0.000342,7]
[383952740,1757197842319,-374.89833605,0.000342,7]
[383952741,1757197842331,-171.10166395,0.000342,7]
[383952742,1757197842342,-546.0,0.000342,7]
[383952743,1757197842353,-546.0,0.000342,7]
[383952744,1757197842362,-546.0,0.000342,7]
[383952745,1757197842372,-546.0,0.000342,7]
[383952746,1757197842381,-546.0,0.000342,7]
[383952747,1757197842391,-358.27310274,0.000342,7]
[383952748,1757197843608,-187.72689726,0.000342,7]
[383952749,1757197843618,-546.0,0.000342,7]
[383952750,1757197843627,-44.61758574,0.000342,7]
[383952751,1757197843655,-501.38241426,0.000342,7]
[383952752,1757197843665,-420.49248019,0.000342,7]
[383952753,1757197843756,-125.50751981,0.000342,7]
[383952754,1757197843766,-503.90377429,0.000342,7]
[383952755,1757197843775,-1357.28224925,0.00034249,3]
[383952756,1757197843784,-276.6475,0.00034249,2]
[383952757,1757197843794,-4025.5161,0.00034249,2]
[383952758,1757197843803,-1443.9917,0.00034249,2]
[383952759,1757197843813,-5224.3219,0.00034249,2]
[383952760,1757197843822,-345.64602,0.000343,8]
[383952761,1757197843832,-150.0,0.0003432,2]
[383952762,1757197843842,-2045.52712371,0.00034331,2]
[383952763,1757197843852,-151.0,0.00034346,7]
[383952764,1757197843861,-5553.9235988,0.00034349,2]
[383952765,1757197843871,-91931.8725907,0.00034349,2]
[383952766,1757197843884,-3586.0441923,0.00034349,2]
[383952767,1757197843895,-500.0,0.00034352,7]
[383952768,1757197843906,-1000.0,0.000344,7]
[383952769,1757197843916,-151.0,0.00034421,2]
[383952770,1757197843926,-151.0,0.00034421,2]
[383952771,1757197843936,-2167.38831406,0.0003448,2]
[383952772,1757197843946,-10224.08783473,0.000345,120]
[383952773,1757197843957,-1061.0,0.0003451,2]
[383952774,1757197843967,-311.5,0.00034521,2]
[383952775,1757197843977,-153.94285468,0.00034529,7]
[383952776,1757197843987,-154.0,0.00034529,7]
[383952777,1757197843998,-206.58494233,0.00034529,7]
[383952778,1757197844008,-2500.0,0.00034538,2]
[383952779,1757197844017,-35214.00638788,0.00034546,5]
[383952780,1757197844027,-500.0,0.00034563,7]
[383952781,1757197844038,-811.0,0.00034577,2]
[383952782,1757197844047,-896.0,0.00034577,2]
[383952783,1757197844057,-1176.0,0.00034577,2]
[383952784,1757197844067,-3383.0,0.00034577,2]
[383952785,1757197844076,-885.0,0.00034577,2]
[383952786,1757197844087,-2035.0,0.00034577,2]
[383952787,1757197844096,-384.88419763,0.000346,2]
[383952788,1757197844106,-384.88419754,0.000346,2]
[383952789,1757197844115,-384.88419754,0.000346,2]
[383952790,1757197844124,-384.88419754,0.000346,2]
[383952791,1757197844133,-384.88419754,0.000346,2]
[383952792,1757197844142,-384.88419754,0.000346,2]
[383952793,1757197844153,-384.88419754,0.00034612,2]
[383952794,1757197844162,-403.27,0.00034618,2]
[383952795,1757197844172,-2289.24950441,0.00034628,2]
[383952796,1757197844182,-421.41378967,0.00034634,8]
[383952797,1757197844191,-23300.55230866,0.00034649,2]
[383952798,1757197844200,-384.88419754,0.00034673,2]
[383952799,1757197844210,-517.10240627,0.00034684,2]
[383952800,1757197844220,-160.0,0.00034694,2]
[383952801,1757197844230,-334.5472959,0.00034694,2]
[383952802,1757197844247,-500.0,0.000347,12]
[383952803,1757197844257,-150.0,0.00034711,2]
[383952804,1757197844267,-1045.44924487,0.00034711,2]
[383952805,1757197844276,-150.0,0.00034711,2]
[383952806,1757197844286,-585.32719176,0.00034711,2]
[383952807,1757197844296,-150.0,0.00034711,2]
[383952808,1757197844306,-1864.76000407,0.00034711,2]
[383952809,1757197844317,-150.0,0.00034711,2]
[383952810,1757197844328,-19245.8544944,0.00034711,2]
[383952811,1757197844339,-421.41378965,0.00034733,8]
[383952812,1757197844348,-384.88419754,0.00034734,2]
[383952813,1757197844357,-500.0,0.00034773,7]
[383952814,1757197844366,-514.85095374,0.00034773,7]
[383952815,1757197844376,-2411.11069476,0.00034777,2]
[383952816,1757197844386,-384.88419754,0.00034794,2]
[383952817,1757197844396,-1000.0,0.000348,12]
[383952818,1757197844406,-421.41378965,0.00034831,8]
[383952819,1757197844416,-384.88419754,0.00034855,2]
[383952820,1757197844426,-517.10240627,0.00034857,2]
[383952821,1757197844435,-4011.15645476,0.00034869,2]
[383952822,1757197844445,-500.0,0.0003487,2]
[383952823,1757197844456,-1154.01311976,0.0003487,2]
[383952824,1757197844465,-200.0,0.00034885,2]
[383952825,1757197844476,-200.0,0.00034885,2]
[383952826,1757197844487,-150.0,0.00034885,2]
[383952827,1757197844496,-253.6227908,0.00034885,2]
[383952828,1757197844506,-150.0,0.00034885,2]
[383952829,1757197844516,-200.0,0.00034885,2]
[383952830,1757197844526,-150.0,0.00034885,2]
[383952831,1757197844536,-150.0,0.00034885,2]
[383952832,1757197844546,-150.0,0.00034885,2]
[383952833,1757197844557,-150.0,0.00034885,2]
[383952834,1757197844568,-186.99789271,0.00034885,2]
[383952835,1757197844578,-500.0,0.00034885,2]
[383952836,1757197844588,-150.0,0.00034885,2]
[383952837,1757197844597,-150.0,0.00034885,2]
[383952838,1757197844608,-150.0,0.00034885,2]
[383952839,1757197844618,-500.0,0.00034885,2]
[383952840,1757197844627,-500.0,0.00034885,2]
[383952841,1757197844637,-150.0,0.00034885,2]
[383952842,1757197844649,-500.0,0.00034885,2]
[383952843,1757197844659,-500.0,0.00034885,2]
[383952844,1757197844668,-150.0,0.00034885,2]
[383952845,1757197844678,-150.0,0.00034885,2]
[383952846,1757197844688,-500.0,0.00034885,2]
[383952847,1757197844699,-500.0,0.00034885,2]
[383952848,1757197844709,-150.0,0.00034885,2]
[383952849,1757197844719,-150.0,0.00034885,2]
[383952850,1757197844729,-168.91930302,0.0003489,14]
[383952851,1757197844738,-9650.31283235,0.0003489,2]
[383952852,1757197844748,-341.01,0.000349,30]
[383952853,1757197844758,-1006.0,0.000349,7]
[383952854,1757197844768,-1500.0,0.000349,12]
[383952855,1757197844779,-1635.013999,0.000349,18]
[383952856,1757197844789,-151.79,0.00034911,2]
[383952857,1757197844799,-593.14865842,0.00034911,2]
[383952858,1757197844809,-384.88419754,0.00034915,2]
[383952859,1757197844819,-151.0,0.00034918,7]
[383952860,1757197844829,-1040.0,0.0003492,2]
[383952861,1757197844839,-63253.78141715,0.00034921,2]
[383952862,1757197844854,-1241.00733942,0.00034921,2]
[383952863,1757197844870,-1706.86357201,0.00034921,2]
[383952864,1757197844883,-1034.32967816,0.00034921,2]
[383952865,1757197844899,-2258.2017424,0.00034921,2]
[383952866,1757197844955,-58499.999994,0.00034921,2]
[383952942,1757197846711,-277.31,0.00032688,2]
[383952946,1757197846755,-387.239506,0.00032688,2]
[383952947,1757197846781,-675.87431143,0.00032688,2]
[383952948,1757197846793,-670.3144,0.00032688,2]
[383952949,1757197846853,-792.68357114,0.00032688,2]
[383952959,1757197847744,166.76,0.00016865,2]
[383952960,1757198487128,-166.76,0.00020238,2]
[383952961,1757198575640,685.0,0.0002,2]
[383952962,1757198769878,164.62,0.00015812,2]
[383952963,1757198770090,164.62,0.00017788,2]
[383952964,1757198770541,164.62,0.00019765,2]
[383952967,1757199031721,-151.0,0.00021655,2]
[383952968,1757199031732,-151.0,0.00021655,2]
[383952969,1757199031743,-151.0,0.00021693,2]
[383952970,1757199031752,-151.0,0.000217,2]
[383952971,1757199031763,-164.62,0.00021741,2]
[383952972,1757199031772,-151.0,0.00021753,2]
[383952973,1757199031784,-151.0,0.00021792,2]
[383952974,1757199031795,-224.36,0.00023422,2]
[383952975,1757199031806,-164.62,0.00023718,2]
[383952976,1757199031816,-250.0,0.00023916,2]
[383952977,1757199031826,-316.41420053,0.000249,2]
[383952978,1757199031835,-224.36,0.00025232,7]
[383952979,1757199031844,-627.95092061,0.00025642,2]
[383952980,1757199031853,-164.62,0.00025694,2]
[383952981,1757199031863,-5333.0,0.000263,5]
[383952982,1757199031873,-1200.0,0.00026599,2]
[383952983,1757199031882,-224.36,0.00027042,7]
[383952984,1757199031892,-300.0,0.00027099,2]
[383952985,1757199031902,-164.62,0.00027671,2]
[383952986,1757199031911,-316.41420045,0.00027827,8]
[383952987,1757199031921,-224.36,0.00028853,30]
[383952988,1757199031930,-164.62,0.00029647,2]
[383952989,1757199031940,-432.04178486,0.00029722,2]
[383952990,1757199031950,-514.85095374,0.0002977,2]
[383952991,1757199031959,-212.67823062,0.0002977,2]
[383952992,1757199031969,-224.36,0.00030663,30]
[383952993,1757199031978,-316.41420045,0.00030754,14]
[383952994,1757199031988,-431.49,0.00031153,30]
[383952995,1757199031997,-322.22,0.00031198,2]
[383952996,1757199032007,-500.0,0.00031233,2]
[383952997,1757199032018,-205.95,0.0003126,2]
[383952998,1757199032028,-350.96,0.00031382,2]
[383952999,1757199032037,-164.62,0.00031624,2]
[383953000,1757199032047,-250.0,0.00031753,2]
[383953001,1757199032056,-663.964,0.00032004,31]
[383953002,1757199032065,-353.36509362,0.0003223,2]
[383953003,1757199032076,-322.22,0.00032367,2]
[383953004,1757199032085,-160.0,0.0003244,7]
[383953005,1757199032095,-666.0,0.00032471,3]
[383953006,1757199032104,-224.36,0.00032473,30]
[383953007,1757199032114,-500.0,0.00032876,120]
[383953008,1757199032123,-500.0,0.00032876,120]
[383953009,1757199032133,-500.0,0.00032876,120]
[383953010,1757199032143,-500.0,0.00032876,120]
[383953012,1757199032152,-500.0,0.00032876,120]
[383953014,1757199032162,-500.0,0.00032876,120]
[383953016,1757199032171,-500.0,0.00032876,120]
[383953017,1757199032180,-500.0,0.00032876,120]
[383953018,1757199032189,-500.0,0.00032876,120]
[383953019,1757199032198,-500.0,0.00032876,120]
[383953021,1757199032208,-500.0,0.00032876,120]
[383953023,1757199032217,-500.0,0.00032876,120]
[383953025,1757199032226,-500.0,0.00032876,120]
[383953027,1757199032236,-500.0,0.00032876,120]
[383953029,1757199032245,-500.0,0.00032876,120]
[383953031,1757199032255,-500.0,0.00032876,120]
[383953033,1757199032264,-326.74973736,0.00032876,120]
[383953036,1757199032273,-2143.0,0.00032926,2]
[383953039,1757199032282,-160.44151723,0.00032984,2]
[383953043,1757199032292,-150.99,0.00033038,2]
[383953045,1757199032301,-511.56,0.00033038,2]
[383953047,1757199032311,-95.19176602,0.00033255,2]
[383953049,1757199032323,-227.41893398,0.00033255,2]
[383953051,1757199032333,-695.39793187,0.00033255,2]
[383953053,1757199032342,-160.0,0.00033255,2]
[383953055,1757199032351,-141.11923106,0.00033255,2]
[383953059,1757199032382,-49.51465909,0.00033255,2]
[383953061,1757199032391,-151.0,0.00033255,2]
[383953063,1757199032400,-267.46074303,0.00033255,2]
[383953065,1757199032410,-166.67,0.00033302,2]
[383953067,1757199032419,-322.22,0.00033537,2]
[383953069,1757199032428,-218.0,0.0003356,7]
[383953071,1757199032438,-316.41420045,0.00033682,21]
[383953073,1757199032447,-215.63866546,0.00033803,2]
[383953075,1757199032457,-162.04,0.0003394,2]
[383953077,1757199032467,-2000.0,0.00034,2]
[383953079,1757199032476,-166.62,0.00034082,2]
[383953082,1757199032486,-166.62,0.00034082,2]
[383953084,1757199032495,-166.62,0.00034082,2]
[383953086,1757199032505,-218.0,0.00034113,2]
[383953088,1757199032514,-218.0,0.00034235,2]
[383953090,1757199032524,-224.36,0.00034284,30]
[383953091,1757199032534,-179.78,0.00034319,2]
[383953093,1757199032543,-150.0,0.0003432,2]
[383953095,1757199032553,-150.0,0.0003432,2]
[383953097,1757199032562,-303.13,0.0003432,2]
[383953099,1757199032572,-218.0,0.00034336,7]
[383953101,1757199032581,-150.0,0.00034339,2]
[383953104,1757199032590,-150.0,0.00034339,2]
[383953106,1757199032601,-174.35,0.00034339,2]
[383953108,1757199032610,-174.35,0.00034339,2]
[383953109,1757199032619,-409.88,0.00034339,2]
[383953111,1757199032629,-174.35,0.00034339,2]
[383953113,1757199032638,-548.29,0.00034339,2]
[383953115,1757199032647,-409.88,0.00034339,2]
[383953118,1757199032657,-541.44,0.00034339,2]
[383953119,1757199032666,-541.44,0.00034339,2]
[383953121,1757199032675,-1000.0,0.000344,7]
[383953124,1757199032685,-218.0,0.00034422,7]
[383953125,1757199032694,-252.46255877,0.00034479,7]
[383953128,1757199032706,-3383.0,0.0003448,2]
[383953130,1757199032716,-2035.0,0.0003448,2]
[383953132,1757199032727,-885.0,0.0003448,2]
[383953134,1757199032736,-1258.0,0.0003448,2]
[383953136,1757199032747,-600.0,0.0003448,2]
[383953138,1757199032757,-1301.0,0.0003448,2]
[383953139,1757199032767,-1578.0,0.0003448,2]
[383953141,1757199032777,-567.0,0.0003448,2]
[383953143,1757199032787,-1176.0,0.0003448,2]
[383953146,1757199032798,-896.0,0.0003448,2]
[383953147,1757199032808,-811.0,0.0003448,2]
[383953148,1757199032818,-21158.0,0.0003448,2]
[383953149,1757199032828,-4164.0,0.0003448,2]
[383953150,1757199032838,-6165.0,0.0003448,2]
[383953151,1757199032847,-218.0,0.00034562,2]
[383953152,1757199032857,-5106.20353,0.0003457,2]
[383953153,1757199032866,-334.5472959,0.00034624,2]
[383953154,1757199032877,-160.0,0.00034624,2]
[383953156,1757199032887,-277.35679052,0.00034624,2]
[383953157,1757199032896,-300.0,0.000347,12]
[383953159,1757199032906,-322.22,0.00034707,2]
[383953162,1757199032916,-276.6475,0.00034721,2]
[383953164,1757199032926,-1000.0,0.00034721,2]
[383953165,1757199032935,-2500.0,0.00034721,2]
[383953167,1757199032944,-176.60237767,0.00034721,2]
[383953169,1757199032953,-540.73465922,0.00034775,7]
[383953172,1757199032963,-365.92120681,0.00034775,7]
[383953174,1757199032972,-164.36970948,0.00034775,7]
[383953175,1757199032981,-151.85374152,0.00034775,7]
[383953178,1757199032991,-2098.823,0.00034776,2]
[383953180,1757199033001,-700.0,0.000348,12]